[Event "Betsys MČR v online bleskovém šachu 2021"]
[Site "Chess.com"]
[Date "2021.04.17"]
[Round "9"]
[White "sachovybukowski"]
[Black "Patrik_Kohm"]
[Result "1-0"]
[WhiteElo "1958"]
[BlackElo "1397"]
[TimeControl "180+1"]
[EndTime "10:26:17 PDT"]
[Termination "Uživatel sachovybukowski zvítězil po vzdání soupeře"]

1. d4 {[%clk 0:03:00.9]} 1... d5 {[%clk 0:02:59.6]} 2. Bg5 {[%clk 0:03:00.6]}
2... Nc6 {[%clk 0:02:58.2]} 3. e3 {[%clk 0:02:59.6]} 3... Bd7 {[%clk 0:02:57.9]}
4. Bd3 {[%clk 0:02:57.6]} 4... h6 {[%clk 0:02:57.9]} 5. Bh4 {[%clk 0:02:57.4]}
5... Nf6 {[%clk 0:02:55.6]} 6. f4 {[%clk 0:02:57]} 6... e6 {[%clk 0:02:55.5]} 7.
Nf3 {[%clk 0:02:56.9]} 7... Be7 {[%clk 0:02:55.4]} 8. Nbd2 {[%clk 0:02:57.2]}
8... O-O {[%clk 0:02:55.3]} 9. O-O {[%clk 0:02:56.6]} 9... Nb4 {[%clk
0:02:52.3]} 10. Be2 {[%clk 0:02:56.1]} 10... Nc6 {[%clk 0:02:51.2]} 11. c3
{[%clk 0:02:55.7]} 11... Nh7 {[%clk 0:02:49]} 12. Bxe7 {[%clk 0:02:53.9]} 12...
Qxe7 {[%clk 0:02:48.9]} 13. Bd3 {[%clk 0:02:54.1]} 13... Nf6 {[%clk 0:02:48.7]}
14. Qe2 {[%clk 0:02:53.7]} 14... Nd8 {[%clk 0:02:43.8]} 15. Kh1 {[%clk
0:02:53.7]} 15... c5 {[%clk 0:02:43.4]} 16. Rg1 {[%clk 0:02:53.9]} 16... c4
{[%clk 0:02:42.5]} 17. Bc2 {[%clk 0:02:52.8]} 17... Nc6 {[%clk 0:02:40.5]} 18.
g4 {[%clk 0:02:52.9]} 18... b5 {[%clk 0:02:37.2]} 19. g5 {[%clk 0:02:52.9]}
19... hxg5 {[%clk 0:02:36.7]} 20. Nxg5 {[%clk 0:02:52.2]} 20... b4 {[%clk
0:02:33.2]} 21. Rg2 {[%clk 0:02:52]} 21... bxc3 {[%clk 0:02:31.6]} 22. bxc3
{[%clk 0:02:51.4]} 22... Rfd8 {[%clk 0:02:24.3]} 23. Rag1 {[%clk 0:02:50.1]}
23... g6 {[%clk 0:02:21.9]} 24. Ngf3 {[%clk 0:02:43.1]} 24... Nh7 {[%clk
0:02:15.3]} 25. Ng5 {[%clk 0:02:33.2]} 25... Nxg5 {[%clk 0:02:14]} 26. Rxg5
{[%clk 0:02:32.3]} 26... Kg7 {[%clk 0:02:09]} 27. Bxg6 {[%clk 0:02:30]} 27...
fxg6 {[%clk 0:02:00.4]} 28. Rxg6+ {[%clk 0:02:29.5]} 28... Kh8 {[%clk
0:02:00.4]} 29. Qh5+ {[%clk 0:02:28.4]} 29... Qh7 {[%clk 0:01:59.6]} 30. Rh6
{[%clk 0:02:28.6]} 1-0

[Event "Betsys MČR v online bleskovém šachu 2021"]
[Site "Chess.com"]
[Date "2021.04.17"]
[Round "9"]
[White "YawningBagel"]
[Black "Ladislav1969"]
[Result "0-1"]
[WhiteElo "1983"]
[BlackElo "2323"]
[TimeControl "180+1"]
[EndTime "10:26:26 PDT"]
[Termination "Uživatel Ladislav1969 zvítězil po vzdání soupeře"]

1. d4 {[%clk 0:03:00.9]} 1... Nf6 {[%clk 0:02:59.1]} 2. c4 {[%clk 0:03:00.1]}
2... g6 {[%clk 0:02:59.5]} 3. Nc3 {[%clk 0:03:00.3]} 3... d5 {[%clk 0:03:00.1]}
4. cxd5 {[%clk 0:03:00.5]} 4... Nxd5 {[%clk 0:03:01]} 5. e4 {[%clk 0:03:01.3]}
5... Nxc3 {[%clk 0:03:01.1]} 6. bxc3 {[%clk 0:03:02.2]} 6... c5 {[%clk
0:03:01.6]} 7. Bg5 {[%clk 0:03:02.3]} 7... cxd4 {[%clk 0:03:00.5]} 8. cxd4
{[%clk 0:03:01.8]} 8... Qa5+ {[%clk 0:03:00.4]} 9. Qd2 {[%clk 0:03:02.2]} 9...
Qxd2+ {[%clk 0:02:58.6]} 10. Kxd2 {[%clk 0:03:02.6]} 10... Bg7 {[%clk
0:02:57.5]} 11. Ke3 {[%clk 0:03:02.5]} 11... Nc6 {[%clk 0:02:55.9]} 12. Rd1
{[%clk 0:02:54.5]} 12... h6 {[%clk 0:02:47.6]} 13. Bh4 {[%clk 0:02:52.2]} 13...
e5 {[%clk 0:02:30.4]} 14. d5 {[%clk 0:02:34.8]} 14... Nd4 {[%clk 0:02:28.9]} 15.
Nf3 {[%clk 0:02:23.7]} 15... Bg4 {[%clk 0:02:20.9]} 16. Be2 {[%clk 0:02:20.5]}
16... Nxe2 {[%clk 0:02:00.5]} 17. Kxe2 {[%clk 0:02:17.1]} 17... Rc8 {[%clk
0:01:59.6]} 18. Rc1 {[%clk 0:02:17]} 18... Kd7 {[%clk 0:01:58.5]} 19. h3 {[%clk
0:02:17]} 19... Bxf3+ {[%clk 0:01:56.9]} 20. Kxf3 {[%clk 0:02:17.9]} 20... f5
{[%clk 0:01:52.5]} 21. Ke3 {[%clk 0:02:15.2]} 21... f4+ {[%clk 0:01:52]} 0-1

[Event "Betsys MČR v online bleskovém šachu 2021"]
[Site "Chess.com"]
[Date "2021.04.17"]
[Round "9"]
[White "Bavorak15"]
[Black "Tolja1"]
[Result "0-1"]
[WhiteElo "1629"]
[BlackElo "2042"]
[TimeControl "180+1"]
[EndTime "10:26:30 PDT"]
[Termination "Uživatel Tolja1 zvítězil po vzdání soupeře"]

1. e4 {[%clk 0:03:00.9]} 1... c5 {[%clk 0:02:57.6]} 2. Nf3 {[%clk 0:03:00.7]}
2... g6 {[%clk 0:02:57.2]} 3. Nc3 {[%clk 0:02:57.7]} 3... Bg7 {[%clk 0:02:56]}
4. d4 {[%clk 0:02:57.3]} 4... cxd4 {[%clk 0:02:55.5]} 5. Nxd4 {[%clk 0:02:58.2]}
5... Nc6 {[%clk 0:02:55.7]} 6. Nxc6 {[%clk 0:02:54.4]} 6... Bxc3+ {[%clk
0:02:49.5]} 7. bxc3 {[%clk 0:02:52.6]} 7... dxc6 {[%clk 0:02:49.4]} 8. Qf3
{[%clk 0:02:40.1]} 8... Be6 {[%clk 0:02:46]} 9. Bd3 {[%clk 0:02:28.3]} 9... Nf6
{[%clk 0:02:36.2]} 10. Bh6 {[%clk 0:02:23.3]} 10... Rg8 {[%clk 0:02:27.5]} 11.
Bg5 {[%clk 0:02:15.5]} 11... Nd7 {[%clk 0:02:09.7]} 12. Rd1 {[%clk 0:02:05.2]}
12... Qa5 {[%clk 0:02:07.8]} 13. O-O {[%clk 0:01:47.3]} 13... Qxg5 {[%clk
0:02:04.6]} 0-1

[Event "Betsys MČR v online bleskovém šachu 2021"]
[Site "Chess.com"]
[Date "2021.04.17"]
[Round "9"]
[White "chessbeer17"]
[Black "TheFr0zenSun"]
[Result "1/2-1/2"]
[WhiteElo "2351"]
[BlackElo "2253"]
[TimeControl "180+1"]
[EndTime "10:26:38 PDT"]
[Termination "Remíza dohodou"]

1. d4 {[%clk 0:03:00.9]} 1... Nf6 {[%clk 0:02:57.5]} 2. c4 {[%clk 0:03:00.8]}
2... g6 {[%clk 0:02:57.1]} 3. Nc3 {[%clk 0:03:00.5]} 3... Bg7 {[%clk 0:02:57.6]}
4. e4 {[%clk 0:03:00.2]} 4... d6 {[%clk 0:02:58.1]} 5. f4 {[%clk 0:03:00.7]}
5... O-O {[%clk 0:02:57.5]} 6. Nf3 {[%clk 0:03:01.3]} 6... c5 {[%clk 0:02:57.5]}
7. dxc5 {[%clk 0:03:01.8]} 7... Qa5 {[%clk 0:02:43.3]} 8. Bd3 {[%clk 0:03:01.4]}
8... Qxc5 {[%clk 0:02:28.7]} 9. Qe2 {[%clk 0:03:01.3]} 9... Bg4 {[%clk
0:02:21.5]} 10. Be3 {[%clk 0:03:00.8]} 10... Qh5 {[%clk 0:02:20.5]} 11. O-O
{[%clk 0:03:00.4]} 11... Nc6 {[%clk 0:02:18.5]} 12. Rac1 {[%clk 0:02:59.8]}
12... e5 {[%clk 0:02:05.4]} 13. h3 {[%clk 0:02:53.3]} 13... Bxf3 {[%clk
0:01:57.6]} 14. Qxf3 {[%clk 0:02:53.6]} 14... Nd4 {[%clk 0:01:48]} 15. Bxd4
{[%clk 0:02:48.8]} 15... exd4 {[%clk 0:01:47.8]} 16. Nd5 {[%clk 0:02:41.5]}
16... Qxf3 {[%clk 0:01:41.5]} 17. Rxf3 {[%clk 0:02:39.4]} 17... Nxd5 {[%clk
0:01:26.9]} 18. cxd5 {[%clk 0:02:36.4]} 18... Rac8 {[%clk 0:01:24.8]} 19. Rff1
{[%clk 0:02:33.2]} 19... Rfd8 {[%clk 0:01:18.3]} 20. Kf2 {[%clk 0:02:31]} 20...
Kf8 {[%clk 0:01:18]} 1/2-1/2

[Event "Betsys MČR v online bleskovém šachu 2021"]
[Site "Chess.com"]
[Date "2021.04.17"]
[Round "9"]
[White "adambelaska"]
[Black "Asmodai5"]
[Result "0-1"]
[WhiteElo "1395"]
[BlackElo "1220"]
[TimeControl "180+1"]
[EndTime "10:26:44 PDT"]
[Termination "Uživatel Asmodai5 zvítězil matem"]

1. d4 {[%clk 0:03:00.9]} 1... d5 {[%clk 0:02:59]} 2. c4 {[%clk 0:02:57.5]} 2...
e6 {[%clk 0:02:56.8]} 3. Nf3 {[%clk 0:02:51.5]} 3... Nf6 {[%clk 0:02:54.6]} 4.
Nc3 {[%clk 0:02:49.3]} 4... Bd6 {[%clk 0:02:49.3]} 5. Bg5 {[%clk 0:02:46.5]}
5... Bd7 {[%clk 0:02:45.3]} 6. Ne5 {[%clk 0:02:41]} 6... Bxe5 {[%clk 0:02:44.4]}
7. dxe5 {[%clk 0:02:39]} 7... Nc6 {[%clk 0:02:26.7]} 8. exf6 {[%clk 0:02:33.7]}
8... gxf6 {[%clk 0:02:26.6]} 9. Bh6 {[%clk 0:02:32.5]} 9... Qe7 {[%clk
0:02:24.4]} 10. cxd5 {[%clk 0:02:28.1]} 10... exd5 {[%clk 0:02:22.4]} 11. Nxd5
{[%clk 0:02:26.9]} 11... Qd6 {[%clk 0:02:17.8]} 12. Nc3 {[%clk 0:02:18.7]} 12...
O-O-O {[%clk 0:02:17.1]} 13. Qxd6 {[%clk 0:02:17.2]} 13... cxd6 {[%clk
0:02:16.5]} 14. Nb5 {[%clk 0:02:16.7]} 14... Nd4 {[%clk 0:01:47.1]} 15. Nxd6+
{[%clk 0:02:12.1]} 15... Kc7 {[%clk 0:01:46.5]} 16. Nxf7 {[%clk 0:02:11.3]}
16... Nc2+ {[%clk 0:01:45.4]} 17. Kd1 {[%clk 0:02:11.5]} 17... Nxa1 {[%clk
0:01:45.2]} 18. Nxh8 {[%clk 0:02:11.5]} 18... Rxh8 {[%clk 0:01:44.9]} 19. Bg7
{[%clk 0:02:03.6]} 19... Rd8 {[%clk 0:01:41.6]} 20. Bxf6 {[%clk 0:02:03.1]}
20... Ba4+ {[%clk 0:01:36.1]} 21. Kc1 {[%clk 0:02:01.8]} 21... Rd1# {[%clk
0:01:33]} 0-1

[Event "Betsys MČR v online bleskovém šachu 2021"]
[Site "Chess.com"]
[Date "2021.04.17"]
[Round "9"]
[White "RadosC"]
[Black "Richarlito"]
[Result "1-0"]
[WhiteElo "2492"]
[BlackElo "2058"]
[TimeControl "180+1"]
[EndTime "10:26:57 PDT"]
[Termination "Uživatel RadosC zvítězil po vzdání soupeře"]

1. e4 {[%clk 0:03:00.9]} 1... c6 {[%clk 0:02:56.1]} 2. d4 {[%clk 0:02:59.3]}
2... d5 {[%clk 0:02:56.3]} 3. e5 {[%clk 0:02:59.6]} 3... Bf5 {[%clk 0:02:55.2]}
4. Nf3 {[%clk 0:02:59.8]} 4... e6 {[%clk 0:02:55.3]} 5. Be2 {[%clk 0:02:59.7]}
5... Ne7 {[%clk 0:02:46.1]} 6. O-O {[%clk 0:02:58.5]} 6... h6 {[%clk 0:02:46.6]}
7. Nbd2 {[%clk 0:02:58.3]} 7... g5 {[%clk 0:02:46.7]} 8. Nb3 {[%clk 0:02:57.6]}
8... Nd7 {[%clk 0:02:44.5]} 9. a4 {[%clk 0:02:57]} 9... Bg7 {[%clk 0:02:44.4]}
10. a5 {[%clk 0:02:57.1]} 10... f6 {[%clk 0:02:42.2]} 11. exf6 {[%clk
0:02:55.8]} 11... Nxf6 {[%clk 0:02:41.2]} 12. Nc5 {[%clk 0:02:52.7]} 12... Qc7
{[%clk 0:02:30]} 13. Ne5 {[%clk 0:02:47.6]} 13... Ne4 {[%clk 0:02:26.4]} 14.
Bh5+ {[%clk 0:02:43.4]} 14... Kf8 {[%clk 0:02:19.2]} 15. Ncd7+ {[%clk
0:02:33.8]} 15... Kg8 {[%clk 0:02:15.5]} 16. Bf7+ {[%clk 0:02:27.5]} 16... Kh7
{[%clk 0:02:15]} 17. f3 {[%clk 0:01:54.2]} 17... Nf6 {[%clk 0:02:14]} 18. Nc5
{[%clk 0:01:48.9]} 18... Rhf8 {[%clk 0:01:48.5]} 19. Bxe6 {[%clk 0:01:47.6]}
19... Qd6 {[%clk 0:01:41.2]} 20. Bxf5+ {[%clk 0:01:43.8]} 20... Nxf5 {[%clk
0:01:41.3]} 21. Qd3 {[%clk 0:01:41.8]} 1-0

[Event "Betsys MČR v online bleskovém šachu 2021"]
[Site "Chess.com"]
[Date "2021.04.17"]
[Round "9"]
[White "TerezaRodshtein"]
[Black "matykov"]
[Result "1-0"]
[WhiteElo "2178"]
[BlackElo "2005"]
[TimeControl "180+1"]
[EndTime "10:27:03 PDT"]
[Termination "Uživatel TerezaRodshtein zvítězil po vzdání soupeře"]

1. f4 {[%clk 0:03:00.9]} 1... Nf6 {[%clk 0:02:57.7]} 2. Nf3 {[%clk 0:03:00]}
2... g6 {[%clk 0:02:56.4]} 3. b3 {[%clk 0:02:59.5]} 3... Bg7 {[%clk 0:02:56.5]}
4. Bb2 {[%clk 0:02:59.9]} 4... O-O {[%clk 0:02:56.7]} 5. d3 {[%clk 0:02:58.9]}
5... d5 {[%clk 0:02:56.8]} 6. Nbd2 {[%clk 0:02:56.8]} 6... c5 {[%clk 0:02:53.1]}
7. e4 {[%clk 0:02:53.6]} 7... dxe4 {[%clk 0:02:46]} 8. dxe4 {[%clk 0:02:52.9]}
8... Nc6 {[%clk 0:02:32]} 9. Bd3 {[%clk 0:02:42]} 9... Nb4 {[%clk 0:02:12.6]}
10. Bc4 {[%clk 0:02:41.6]} 10... b6 {[%clk 0:02:09.5]} 11. a3 {[%clk 0:02:40.6]}
11... Nc6 {[%clk 0:02:07.6]} 12. e5 {[%clk 0:02:37.6]} 12... Ng4 {[%clk
0:01:50.7]} 13. Qe2 {[%clk 0:02:34.6]} 13... a6 {[%clk 0:01:32.4]} 14. O-O-O
{[%clk 0:02:24]} 14... b5 {[%clk 0:01:32.3]} 15. Bd3 {[%clk 0:02:23.7]} 15...
Nh6 {[%clk 0:01:14.5]} 16. Ne4 {[%clk 0:02:12.2]} 16... c4 {[%clk 0:01:01.3]}
17. Bxc4 {[%clk 0:02:10.9]} 17... bxc4 {[%clk 0:01:00.7]} 18. Rxd8 {[%clk
0:02:10]} 1-0

[Event "Betsys MČR v online bleskovém šachu 2021"]
[Site "Chess.com"]
[Date "2021.04.17"]
[Round "9"]
[White "Nevimjakhrat"]
[Black "Hroch_Hippo"]
[Result "1-0"]
[WhiteElo "1456"]
[BlackElo "1095"]
[TimeControl "180+1"]
[EndTime "10:27:16 PDT"]
[Termination "Uživatel Nevimjakhrat zvítězil matem"]

1. c4 {[%clk 0:03:00.9]} 1... e5 {[%clk 0:02:58.9]} 2. Nc3 {[%clk 0:03:00.8]}
2... Bc5 {[%clk 0:02:55.2]} 3. g3 {[%clk 0:02:54.9]} 3... Qf6 {[%clk 0:02:54.3]}
4. Nf3 {[%clk 0:02:44.4]} 4... d6 {[%clk 0:02:53.6]} 5. e4 {[%clk 0:02:41.3]}
5... Bg4 {[%clk 0:02:51.6]} 6. Bg2 {[%clk 0:02:39.9]} 6... Bxf3 {[%clk
0:02:51.4]} 7. Bxf3 {[%clk 0:02:31.6]} 7... Nc6 {[%clk 0:02:45.5]} 8. Nd5 {[%clk
0:02:29.5]} 8... Qd8 {[%clk 0:02:43.7]} 9. Bg2 {[%clk 0:02:27.5]} 9... Nf6
{[%clk 0:02:39.2]} 10. O-O {[%clk 0:02:19.7]} 10... Nxd5 {[%clk 0:02:37.8]} 11.
cxd5 {[%clk 0:02:20]} 11... Nd4 {[%clk 0:02:37.9]} 12. d3 {[%clk 0:02:14]} 12...
O-O {[%clk 0:02:33]} 13. h3 {[%clk 0:02:13.2]} 13... c6 {[%clk 0:02:30.2]} 14.
dxc6 {[%clk 0:02:10.9]} 14... bxc6 {[%clk 0:02:29.6]} 15. Kh2 {[%clk 0:02:07.4]}
15... d5 {[%clk 0:02:29.5]} 16. f4 {[%clk 0:02:02.9]} 16... exf4 {[%clk
0:02:28.8]} 17. Bxf4 {[%clk 0:02:02.4]} 17... dxe4 {[%clk 0:02:27.5]} 18. dxe4
{[%clk 0:02:03.2]} 18... g5 {[%clk 0:02:18.9]} 19. Qg4 {[%clk 0:01:44.7]} 19...
h6 {[%clk 0:02:14.7]} 20. Be5 {[%clk 0:01:27.3]} 20... Ne6 {[%clk 0:02:05.6]}
21. Rf6 {[%clk 0:01:22.4]} 21... Qd7 {[%clk 0:01:58.4]} 22. Rxh6 {[%clk
0:01:18.8]} 22... Rab8 {[%clk 0:01:48]} 23. Rh8# {[%clk 0:01:17.5]} 1-0

[Event "Betsys MČR v online bleskovém šachu 2021"]
[Site "Chess.com"]
[Date "2021.04.17"]
[Round "9"]
[White "jsebesta"]
[Black "RunningPawnz88"]
[Result "1-0"]
[WhiteElo "1642"]
[BlackElo "1351"]
[TimeControl "180+1"]
[EndTime "10:27:21 PDT"]
[Termination "Uživatel jsebesta zvítězil matem"]

1. e4 {[%clk 0:03:00.9]} 1... d5 {[%clk 0:02:58.1]} 2. exd5 {[%clk 0:03:00.9]}
2... c6 {[%clk 0:02:57.4]} 3. dxc6 {[%clk 0:02:59.4]} 3... Nxc6 {[%clk
0:02:57.4]} 4. Nf3 {[%clk 0:02:59.7]} 4... Nf6 {[%clk 0:02:57.3]} 5. Be2 {[%clk
0:02:59.6]} 5... e6 {[%clk 0:02:57.5]} 6. O-O {[%clk 0:02:59.4]} 6... Be7 {[%clk
0:02:57.7]} 7. Nc3 {[%clk 0:02:57.8]} 7... O-O {[%clk 0:02:58.2]} 8. d4 {[%clk
0:02:57.9]} 8... a6 {[%clk 0:02:56.6]} 9. Bg5 {[%clk 0:02:54.5]} 9... Nd5 {[%clk
0:02:54.9]} 10. Bxe7 {[%clk 0:02:51.4]} 10... Qxe7 {[%clk 0:02:50.9]} 11. Nxd5
{[%clk 0:02:49.8]} 11... exd5 {[%clk 0:02:51.1]} 12. Bd3 {[%clk 0:02:50]} 12...
Bg4 {[%clk 0:02:45.1]} 13. c3 {[%clk 0:02:46.3]} 13... Rfe8 {[%clk 0:02:41.3]}
14. h3 {[%clk 0:02:41]} 14... Bh5 {[%clk 0:02:39.6]} 15. Re1 {[%clk 0:02:29.9]}
15... Qf6 {[%clk 0:02:32.3]} 16. g4 {[%clk 0:01:44.4]} 16... Bg6 {[%clk
0:02:27.6]} 17. Bxg6 {[%clk 0:01:44.3]} 17... Qxg6 {[%clk 0:02:27.4]} 18. Ne5
{[%clk 0:01:42]} 18... Nxe5 {[%clk 0:02:24.7]} 19. Rxe5 {[%clk 0:01:41.4]} 19...
Rxe5 {[%clk 0:02:20.8]} 20. dxe5 {[%clk 0:01:40.5]} 20... Qe4 {[%clk 0:02:20.5]}
21. Qe1 {[%clk 0:01:30.8]} 21... Qc2 {[%clk 0:02:12.5]} 22. e6 {[%clk
0:01:21.8]} 22... f6 {[%clk 0:02:07.2]} 23. e7 {[%clk 0:01:19]} 23... Re8 {[%clk
0:02:00.9]} 24. Qe6+ {[%clk 0:01:18.4]} 24... Kh8 {[%clk 0:02:00.2]} 25. Qf7
{[%clk 0:01:16.6]} 25... Qg6 {[%clk 0:01:59.3]} 26. Qf8+ {[%clk 0:01:16.6]}
26... Rxf8 {[%clk 0:01:54.9]} 27. exf8=Q# {[%clk 0:01:16.5]} 1-0

[Event "Betsys MČR v online bleskovém šachu 2021"]
[Site "Chess.com"]
[Date "2021.04.17"]
[Round "9"]
[White "masterofbuzkashi"]
[Black "ReceptiveYoyo"]
[Result "1-0"]
[WhiteElo "2230"]
[BlackElo "1368"]
[TimeControl "180+1"]
[EndTime "10:27:22 PDT"]
[Termination "Uživatel masterofbuzkashi zvítězil po vzdání soupeře"]

1. d4 {[%clk 0:03:00.9]} 1... d5 {[%clk 0:02:59.3]} 2. c4 {[%clk 0:03:01]} 2...
e6 {[%clk 0:02:59.8]} 3. Nc3 {[%clk 0:03:01.2]} 3... Nf6 {[%clk 0:03:00.1]} 4.
Nf3 {[%clk 0:03:01.5]} 4... Bb4 {[%clk 0:03:00.6]} 5. Bg5 {[%clk 0:03:00.9]}
5... Nc6 {[%clk 0:03:00.1]} 6. e3 {[%clk 0:03:00.3]} 6... h6 {[%clk 0:02:59.9]}
7. Bxf6 {[%clk 0:02:57.8]} 7... Qxf6 {[%clk 0:03:00.8]} 8. a3 {[%clk 0:02:57.5]}
8... Bxc3+ {[%clk 0:03:00.8]} 9. bxc3 {[%clk 0:02:58.4]} 9... O-O {[%clk
0:03:00.8]} 10. Bd3 {[%clk 0:02:57.6]} 10... Rd8 {[%clk 0:02:54.7]} 11. O-O
{[%clk 0:02:57.3]} 11... e5 {[%clk 0:02:54.8]} 12. cxd5 {[%clk 0:02:53.8]} 12...
Rxd5 {[%clk 0:02:50.7]} 13. c4 {[%clk 0:02:51.9]} 13... Rd7 {[%clk 0:02:36.8]}
14. d5 {[%clk 0:02:51.7]} 14... Ne7 {[%clk 0:02:31.2]} 15. e4 {[%clk 0:02:47.8]}
15... c6 {[%clk 0:02:30.9]} 16. Nd2 {[%clk 0:02:43.8]} 16... cxd5 {[%clk
0:02:29.4]} 17. cxd5 {[%clk 0:02:43.3]} 17... b6 {[%clk 0:02:24.1]} 18. Qa4
{[%clk 0:02:37.4]} 18... Nxd5 {[%clk 0:02:02.1]} 19. exd5 {[%clk 0:02:33.7]}
19... Rxd5 {[%clk 0:02:03]} 20. Be4 {[%clk 0:02:28.2]} 20... Rd4 {[%clk
0:01:49.2]} 21. Qc2 {[%clk 0:02:27.1]} 21... Rb8 {[%clk 0:01:40.3]} 22. Qc7
{[%clk 0:02:24.7]} 22... Qd8 {[%clk 0:01:28.2]} 23. Qxb8 {[%clk 0:02:21.9]}
23... Rxd2 {[%clk 0:01:27.3]} 24. Rac1 {[%clk 0:02:18.3]} 24... Ba6 {[%clk
0:01:21.6]} 25. Qxd8+ {[%clk 0:02:12.6]} 25... Rxd8 {[%clk 0:01:22.5]} 26. Rfd1
{[%clk 0:02:11.6]} 26... Rxd1+ {[%clk 0:01:20.5]} 27. Rxd1 {[%clk 0:02:11]}
27... f6 {[%clk 0:01:20.2]} 28. Rd7 {[%clk 0:02:09.6]} 1-0

[Event "Betsys MČR v online bleskovém šachu 2021"]
[Site "Chess.com"]
[Date "2021.04.17"]
[Round "9"]
[White "pohoda1966"]
[Black "TCTCGTGCTATG"]
[Result "0-1"]
[WhiteElo "1727"]
[BlackElo "1924"]
[TimeControl "180+1"]
[EndTime "10:27:53 PDT"]
[Termination "Uživatel TCTCGTGCTATG zvítězil po vzdání soupeře"]

1. e4 {[%clk 0:02:58.4]} 1... e5 {[%clk 0:02:57.9]} 2. Bc4 {[%clk 0:02:56.1]}
2... Nf6 {[%clk 0:02:57.3]} 3. d4 {[%clk 0:02:53.4]} 3... exd4 {[%clk
0:02:56.6]} 4. e5 {[%clk 0:02:53.5]} 4... d5 {[%clk 0:02:55.5]} 5. Bb5+ {[%clk
0:02:52.9]} 5... c6 {[%clk 0:02:47.5]} 6. exf6 {[%clk 0:02:50.6]} 6... cxb5
{[%clk 0:02:46.4]} 7. Qe2+ {[%clk 0:02:50.6]} 7... Be6 {[%clk 0:02:44.1]} 8.
Qxb5+ {[%clk 0:02:50.3]} 8... Nc6 {[%clk 0:02:43]} 9. Nf3 {[%clk 0:02:49.3]}
9... Bd6 {[%clk 0:02:23]} 10. Nxd4 {[%clk 0:02:48.1]} 10... O-O {[%clk
0:02:18.3]} 11. Nxc6 {[%clk 0:02:47.8]} 11... bxc6 {[%clk 0:02:09.7]} 12. Qxc6
{[%clk 0:02:42.8]} 12... Rc8 {[%clk 0:02:02.6]} 13. Qa6 {[%clk 0:02:41.7]} 13...
Rxc2 {[%clk 0:01:49.1]} 14. fxg7 {[%clk 0:02:38.2]} 14... Re8 {[%clk 0:01:48]}
15. O-O {[%clk 0:02:34.8]} 15... Bc8 {[%clk 0:01:31.2]} 16. Qd3 {[%clk
0:02:28.1]} 16... Qh4 {[%clk 0:01:19.4]} 17. g3 {[%clk 0:02:16.7]} 17... Qe4
{[%clk 0:01:05.9]} 18. Rd1 {[%clk 0:01:44.7]} 18... Qxd3 {[%clk 0:01:02.9]} 19.
Rxd3 {[%clk 0:01:44.1]} 19... Rxc1+ {[%clk 0:01:01.4]} 20. Kg2 {[%clk
0:01:44.6]} 20... Ree1 {[%clk 0:00:59.6]} 21. Rxd5 {[%clk 0:01:38.6]} 21... Bb7
{[%clk 0:00:59.1]} 22. Nc3 {[%clk 0:01:35.4]} 22... Bxd5+ {[%clk 0:00:58]} 23.
Nxd5 {[%clk 0:01:34.9]} 23... Rxa1 {[%clk 0:00:58.2]} 0-1

[Event "Betsys MČR v online bleskovém šachu 2021"]
[Site "Chess.com"]
[Date "2021.04.17"]
[Round "9"]
[White "rolkento"]
[Black "Daffac"]
[Result "1-0"]
[WhiteElo "2238"]
[BlackElo "2083"]
[TimeControl "180+1"]
[EndTime "10:28:00 PDT"]
[Termination "Uživatel rolkento zvítězil po vzdání soupeře"]

1. e4 {[%clk 0:03:00.9]} 1... c6 {[%clk 0:02:58.7]} 2. d4 {[%clk 0:03:00.6]}
2... d5 {[%clk 0:02:59.6]} 3. e5 {[%clk 0:03:01]} 3... Bf5 {[%clk 0:02:59.3]} 4.
f4 {[%clk 0:03:01.3]} 4... Qb6 {[%clk 0:02:50.7]} 5. Nf3 {[%clk 0:03:00.7]} 5...
h6 {[%clk 0:02:46.7]} 6. c3 {[%clk 0:03:00.9]} 6... e6 {[%clk 0:02:47.2]} 7. Qb3
{[%clk 0:03:00.6]} 7... Ne7 {[%clk 0:02:42.3]} 8. Be3 {[%clk 0:02:58]} 8... Bg4
{[%clk 0:02:41]} 9. Nbd2 {[%clk 0:02:56.7]} 9... Nf5 {[%clk 0:02:40.2]} 10. Bf2
{[%clk 0:02:56.8]} 10... Nd7 {[%clk 0:02:34.3]} 11. h3 {[%clk 0:02:56.7]} 11...
Bxf3 {[%clk 0:02:29.8]} 12. Nxf3 {[%clk 0:02:57.6]} 12... h5 {[%clk 0:02:23.6]}
13. Bd3 {[%clk 0:02:48.8]} 13... g6 {[%clk 0:02:20.2]} 14. O-O {[%clk
0:02:46.2]} 14... Be7 {[%clk 0:02:18]} 15. g4 {[%clk 0:02:43.5]} 15... hxg4
{[%clk 0:02:12.8]} 16. hxg4 {[%clk 0:02:43.8]} 16... Nh6 {[%clk 0:02:07.9]} 17.
Nh2 {[%clk 0:02:42.1]} 17... O-O-O {[%clk 0:01:38.1]} 18. Kg2 {[%clk 0:02:37.1]}
18... g5 {[%clk 0:01:35.4]} 19. Qxb6 {[%clk 0:02:33.4]} 19... axb6 {[%clk
0:01:34.6]} 20. f5 {[%clk 0:02:33.6]} 20... c5 {[%clk 0:01:25.9]} 21. f6 {[%clk
0:02:29.9]} 21... Bf8 {[%clk 0:01:26.3]} 22. Kg3 {[%clk 0:02:27.6]} 22... Kb8
{[%clk 0:01:06.7]} 23. Nf3 {[%clk 0:02:25.4]} 23... Rc8 {[%clk 0:00:59.3]} 24.
Rh1 {[%clk 0:02:16.9]} 24... Rg8 {[%clk 0:00:49.6]} 25. Be3 {[%clk 0:02:16]}
25... cxd4 {[%clk 0:00:33.7]} 26. cxd4 {[%clk 0:02:15.6]} 26... Bb4 {[%clk
0:00:29]} 27. Rxh6 {[%clk 0:02:05.6]} 1-0